[Event "91st GER-ch 2020"]
[Site "Magdeburg"]
[Date "2020.08.20"]
[Round "7.12"]
[White "Nguyen, Alex Dac-Vuong"]
[Black "Voege, Tobias"]
[Result "1-0"]
[ECO "C11"]
[WhiteElo "2366"]
[BlackElo "2326"]
[Annotator "ChessBase"]
[PlyCount "43"]
[EventDate "2020.08.16"]
[EventType "swiss"]
[EventCountry "GER"]
[SourceTitle "playchess.com"]
[Source "ChessBase"]
[SourceQuality "1"]
[TimeControl "40/5400+30:1800+30"]

1. e4 {[%emt 0:00:00]} e6 {[%emt 0:00:00]} 2. d4 {[%emt 0:00:00]} d5 {[%emt 0:00:00]} 3. Nc3 {[%emt 0:00:22]} Nf6 {[%emt 0:00:09]} 4. e5 {[%emt 0:00:06]} Nfd7 {[%emt 0:00:05]} 5. f4 {[%emt 0:00:06]} c5 {[%emt 0:00:04]} 6. Nf3 {[%emt 0:00:07]} Nc6 {[%emt 0:00:06]} 7. Be3 {[%emt 0:00:04]} Qb6 {[%emt 0:00:03]} 8. Be2 {[%emt 0:03:38]} cxd4 {[%emt 0:35:44]} 9. Nxd4 {[%emt 0:00:15]} Qxb2 {[%emt 0:02:20]} 10. Ndb5 {[%emt 0:23:06]} Nb4 {[%emt 0:20:17]} 11. Kd2 {[%emt 0:03:12]} Kd8 {[%emt 0:09:24]} 12. Rb1 {[%emt 0:02:29]} Qxc2+ {[%emt 0:00:37]} 13. Qxc2 {[%emt 0:00:06]} Nxc2 {[%emt 0:00:04]} 14. Kxc2 {[%emt 0:00:08]} a6 {[%emt 0:02:57]} 15. Nd4 {[%emt 0:00:10]} Bc5 {[%emt 0:04:07]} 16. Kd2 {[%emt 0:01:37]} Ba7 {[%emt 0:01:34]} 17. Nb3 {[%emt 0:02:36]} b6 {[%emt 0:02:16]} 18. Rhc1 {[%emt 0:02:32]} Bb7 {[%emt 0:06:23]} 19. Na4 {[%emt 0:05:14]} Rc8 {[%emt 0:02:52]} 20. Na5 {[%emt 0:02:49]} Rxc1 {[%emt 0:00:35]} 21. Rxc1 {[%emt 0:00:29]} Ba8 {[%emt 0:01:53]} 22. Bxa6 {[%emt 0:01:50]} 1-0

[Event "91st GER-ch 2020"]
[Site "Magdeburg"]
[Date "2020.08.20"]
[Round "7.13"]
[White "Florstedt, Johannes"]
[Black "Schulte, Felix"]
[Result "1-0"]
[ECO "B23"]
[WhiteElo "2350"]
[BlackElo "2174"]
[Annotator "ChessBase"]
[PlyCount "69"]
[EventDate "2020.08.16"]
[EventType "swiss"]
[EventCountry "GER"]
[SourceTitle "playchess.com"]
[Source "ChessBase"]
[SourceQuality "1"]
[TimeControl "40/5400+30:1800+30"]

1. e4 {[%emt 0:00:00]} c5 {[%emt 0:00:00]} 2. Nc3 {[%emt 0:00:17]} e6 {[%emt 0:00:06]} 3. Nge2 {[%emt 0:00:11]} a6 {[%emt 0:00:39]} 4. g3 {[%emt 0:00:12]} b5 {[%emt 0:00:42]} 5. Bg2 {[%emt 0:00:13]} Bb7 {[%emt 0:00:08]} 6. d4 {[%emt 0:00:15]} cxd4 {[%emt 0:02:50]} 7. Nxd4 {[%emt 0:00:08]} Nf6 {[%emt 0:01:41]} 8. a3 {[%emt 0:00:08]} Qc7 {[%emt 0:00:57]} 9. O-O {[%emt 0:00:09]} d6 {[%emt 0:00:30]} 10. Re1 {[%emt 0:00:07]} Nbd7 {[%emt 0:00:35]} 11. a4 {[%emt 0:02:06]} b4 {[%emt 0:02:05]} 12. Na2 {[%emt 0:00:09]} a5 {[%emt 0:00:07]} 13. c3 {[%emt 0:02:03]} bxc3 {[%emt 0:00:39]} 14. Nxc3 {[%emt 0:00:26]} Be7 {[%emt 0:00:19]} 15. Bf4 {[%emt 0:01:17]} e5 {[%emt 0:05:36]} 16. Ncb5 {[%emt 0:00:13]} Qb6 {[%emt 0:07:39]} 17. Nf5 {[%emt 0:00:13]} exf4 {[%emt 0:01:28]} 18. Nfxd6+ {[%emt 0:00:28]} Kf8 {[%emt 0:04:44]} 19. Nxb7 {[%emt 0:00:08]} fxg3 {[%emt 0:04:27]} 20. hxg3 {[%emt 0:00:10]} Ne5 {[%emt 0:00:29]} 21. Qd4 {[%emt 0:06:37]} Qxd4 {[%emt 0:02:07]} 22. Nxd4 {[%emt 0:00:05]} Ra7 {[%emt 0:00:22]} 23. f4 {[%emt 0:09:30]} Rxb7 {[%emt 0:01:35]} 24. fxe5 {[%emt 0:00:13]} Bc5 {[%emt 0:00:36]} 25. exf6 {[%emt 0:04:53]} Bxd4+ {[%emt 0:00:08]} 26. Kh2 {[%emt 0:00:27]} gxf6 {[%emt 0:00:43]} 27. e5 {[%emt 0:02:00]} Rxb2 {[%emt 0:00:29]} 28. exf6 {[%emt 0:00:26]} Bxf6 {[%emt 0:00:14]} 29. Rab1 {[%emt 0:03:23]} Ra2 {[%emt 0:02:10]} 30. Re4 {[%emt 0:04:16]} h5 {[%emt 0:05:05]} 31. Rb5 {[%emt 0:01:37]} Bc3 {[%emt 0:07:03]} 32. Kh3 {[%emt 0:00:09]} Kg7 {[%emt 0:02:18]} 33. Rf4 {[%emt 0:00:14]} Rh6 {[%emt 0:01:43]} 34. Bd5 {[%emt 0:02:24]} Rf6 {[%emt 0:03:25]} 35. Bxa2 {[%emt 0:00:11]} 1-0

[Event "91st GER-ch 2020"]
[Site "Magdeburg"]
[Date "2020.08.20"]
[Round "7.14"]
[White "Weber, Max"]
[Black "Schulz, Lukas"]
[Result "1/2-1/2"]
[ECO "E97"]
[WhiteElo "2243"]
[BlackElo "2293"]
[Annotator "ChessBase"]
[PlyCount "76"]
[EventDate "2020.08.16"]
[EventType "swiss"]
[EventCountry "GER"]
[SourceTitle "playchess.com"]
[Source "ChessBase"]
[SourceQuality "1"]
[TimeControl "40/5400+30:1800+30"]

1. Nf3 {[%emt 0:00:00]} Nf6 {[%emt 0:00:00]} 2. c4 {[%emt 0:00:00]} g6 {[%emt 0:00:00]} 3. Nc3 {[%emt 0:00:00]} Bg7 {[%emt 0:00:04]} 4. e4 {[%emt 0:00:16]} d6 {[%emt 0:00:06]} 5. d4 {[%emt 0:00:12]} O-O {[%emt 0:00:10]} 6. Be2 {[%emt 0:01:09]} e5 {[%emt 0:01:15]} 7. O-O {[%emt 0:00:53]} Nc6 {[%emt 0:01:41]} 8. dxe5 {[%emt 0:02:22]} dxe5 {[%emt 0:01:33]} 9. Bg5 {[%emt 0:00:36]} Be6 {[%emt 0:09:33]} 10. Qxd8 {[%emt 0:09:38]} Nxd8 {[%emt 0:02:48]} 11. Bxf6 {[%emt 0:01:43]} Bxf6 {[%emt 0:00:08]} 12. Nd5 {[%emt 0:00:16]} Bxd5 {[%emt 0:02:18]} 13. cxd5 {[%emt 0:00:24]} c6 {[%emt 0:03:13]} 14. Rfd1 {[%emt 0:11:51]} cxd5 {[%emt 0:04:02]} 15. exd5 {[%emt 0:03:17]} Rc8 {[%emt 0:10:50]} 16. Rac1 {[%emt 0:15:59]} Rxc1 {[%emt 0:03:16]} 17. Rxc1 {[%emt 0:00:02]} e4 {[%emt 0:00:06]} 18. Nd2 {[%emt 0:01:34]} Bxb2 {[%emt 0:00:26]} 19. Rb1 {[%emt 0:01:36]} Be5 {[%emt 0:09:03]} 20. Nxe4 {[%emt 0:01:50]} b6 {[%emt 0:00:18]} 21. Ba6 {[%emt 0:04:55]} f5 {[%emt 0:03:07]} 22. Ng5 {[%emt 0:02:59]} Re8 {[%emt 0:08:58]} 23. Kf1 {[%emt 0:02:57]} Bd6 {[%emt 0:02:17]} 24. h3 {[%emt 0:06:11]} Kg7 {[%emt 0:03:46]} 25. Re1 {[%emt 0:07:06]} Rxe1+ {[%emt 0:01:02]} 26. Kxe1 {[%emt 0:00:02]} Bc5 {[%emt 0:02:48]} 27. Ke2 {[%emt 0:03:34]} h6 {[%emt 0:01:04]} 28. Ne6+ {[%emt 0:01:17]} Nxe6 {[%emt 0:00:16]} 29. dxe6 {[%emt 0:00:06]} Kf6 {[%emt 0:00:07]} 30. Bc4 {[%emt 0:00:37]} Ke5 {[%emt 0:03:09]} 31. Kd3 {[%emt 0:01:31]} Ba3 {[%emt 0:03:51]} 32. Ke3 {[%emt 0:04:04]} Kd6 {[%emt 0:06:17]} 33. f3 {[%emt 0:08:24]} Kc6 {[%emt 0:07:57]} 34. g4 {[%emt 0:01:39]} Bc5+ {[%emt 0:03:54]} 35. Kf4 {[%emt 0:01:30]} Bd6+ {[%emt 0:00:06]} 36. Ke3 {[%emt 0:00:11]} Bc5+ {[%emt 0:00:07]} 37. Kf4 {[%emt 0:00:06]} Bd6+ {[%emt 0:00:05]} 38. Ke3 {[%emt 0:00:12]} Bc5+ 1/2-1/2

[Event "91st GER-ch 2020"]
[Site "Magdeburg"]
[Date "2020.08.20"]
[Round "7.16"]
[White "Bastian, Herbert"]
[Black "Gustain, Marc"]
[Result "1-0"]
[ECO "B01"]
[WhiteElo "2272"]
[BlackElo "2173"]
[Annotator "ChessBase"]
[PlyCount "67"]
[EventDate "2020.08.16"]
[EventType "swiss"]
[EventCountry "GER"]
[SourceTitle "playchess.com"]
[Source "ChessBase"]
[SourceQuality "1"]
[TimeControl "40/5400+30:1800+30"]

1. e4 {[%emt 0:00:00]} d5 {[%emt 0:00:00]} 2. exd5 {[%emt 0:00:08]} Qxd5 {[%emt 0:00:00]} 3. Nc3 {[%emt 0:00:11]} Qd8 {[%emt 0:00:00]} 4. d4 {[%emt 0:00:49]} Nf6 {[%emt 0:00:00]} 5. Be2 {[%emt 0:05:37]} Bf5 {[%emt 0:00:55]} 6. Be3 {[%emt 0:01:02]} e6 {[%emt 0:00:29]} 7. Nf3 {[%emt 0:00:52]} c6 {[%emt 0:01:58]} 8. Nh4 {[%emt 0:01:18]} Bg6 {[%emt 0:00:37]} 9. Nxg6 {[%emt 0:01:58]} hxg6 {[%emt 0:00:04]} 10. Qd3 {[%emt 0:01:33]} Bb4 {[%emt 0:03:58]} 11. O-O-O {[%emt 0:01:38]} Qa5 {[%emt 0:05:46]} 12. Kb1 {[%emt 0:04:27]} Nbd7 {[%emt 0:04:27]} 13. Ne4 {[%emt 0:06:16]} Nxe4 {[%emt 0:02:01]} 14. Qxe4 {[%emt 0:00:06]} Nf6 {[%emt 0:01:02]} 15. Qd3 {[%emt 0:00:51]} Nd5 {[%emt 0:03:33]} 16. c4 {[%emt 0:04:55]} Nxe3 {[%emt 0:02:02]} 17. fxe3 {[%emt 0:00:16]} Be7 {[%emt 0:01:55]} 18. Bf3 {[%emt 0:03:10]} O-O-O {[%emt 0:04:44]} 19. Qb3 {[%emt 0:01:40]} Qb4 {[%emt 0:03:07]} 20. Qc2 {[%emt 0:06:45]} Kb8 {[%emt 0:09:57]} 21. Rd3 {[%emt 0:04:33]} Qd6 {[%emt 0:04:42]} 22. h3 {[%emt 0:03:34]} e5 {[%emt 0:12:15]} 23. Rhd1 {[%emt 0:08:39]} f5 {[%emt 0:04:12]} 24. Rb3 {[%emt 0:10:24]} exd4 {[%emt 0:03:10]} 25. exd4 {[%emt 0:01:00]} Bf6 {[%emt 0:01:08]} 26. c5 {[%emt 0:01:58]} Qc7 {[%emt 0:11:24]} 27. d5 {[%emt 0:02:10]} cxd5 {[%emt 0:02:21]} 28. Bxd5 {[%emt 0:01:17]} b6 {[%emt 0:04:53]} 29. Qf2 {[%emt 0:08:50]} Qe5 {[%emt 0:03:50]} 30. cxb6 {[%emt 0:01:03]} Rxd5 {[%emt 0:00:16]} 31. bxa7+ {[%emt 0:00:10]} Ka8 {[%emt 0:00:34]} 32. Qf3 {[%emt 0:00:11]} Rhd8 {[%emt 0:02:36]} 33. Rb5 {[%emt 0:00:32]} Qe2 {[%emt 0:05:55]} 34. Rdxd5 {[%emt 0:01:14]} 1-0

[Event "91st GER-ch 2020"]
[Site "Magdeburg"]
[Date "2020.08.21"]
[Round "8.4"]
[White "Parvanyan, Ashot"]
[Black "Dubiel, Jacek"]
[Result "1-0"]
[ECO "A05"]
[WhiteElo "2449"]
[BlackElo "2414"]
[Annotator "RC"]
[PlyCount "61"]
[EventDate "2020.08.16"]
[EventType "swiss"]
[EventCountry "GER"]
[SourceTitle "playchess.com"]
[Source "ChessBase"]
[SourceQuality "1"]
[TimeControl "40/5400+30:1800+30"]

1. Nf3 {[%emt 0:00:00]} Nf6 {[%emt 0:00:00]} 2. c4 {[%emt 0:00:00]} e6 {[%emt 0:00:00]} 3. g3 {[%emt 0:00:14]} d5 {[%emt 0:00:00]} 4. Bg2 {[%emt 0:00:13]} d4 {[%emt 0:00:04]} 5. O-O {[%emt 0:00:58]} c5 {[%emt 0:00:52]} 6. e3 {[%emt 0:00:53]} Nc6 {[%emt 0:00:05]} 7. exd4 {[%emt 0:00:34]} cxd4 {[%emt 0:00:09]} 8. d3 {[%emt 0:00:04]} Bd6 {[%emt 0:05:28]} 9. Na3 {[%emt 0:00:59]} O-O {[%emt 0:05:38]} 10. Nc2 {[%emt 0:00:14]} Bc5 {[%emt 0:15:25]} 11. Re1 {[%emt 0:03:10]} a5 {[%emt 0:06:02]} 12. b3 {[%emt 0:11:06]} Nd7 {[%emt 0:14:24]} 13. a3 {[%emt 0:03:46]} e5 {[%emt 0:10:10]} 14. Rb1 {[%emt 0:05:28]} Re8 {[%emt 0:01:45]} 15. b4 {[%emt 0:07:26]} axb4 {[%emt 0:00:34]} 16. axb4 {[%emt 0:00:09]} Bf8 {[%emt 0:00:04]} 17. Bg5 {[%emt 0:03:04]} f6 {[%emt 0:01:39]} 18. Bd2 {[%emt 0:02:30]} Ndb8 {[%emt 0:11:04]} 19. b5 {[%emt 0:11:00]} Ne7 {[%emt 0:00:49]} 20. Bb4 {[%emt 0:02:53]} Qc7 {[%emt 0:04:46]} 21. Nfxd4 {[%emt 0:16:47]} exd4 {[%emt 0:00:51]} 22. Nxd4 {[%emt 0:00:04]} Qb6 {[%emt 0:11:38]} 23. c5 {[%emt 0:03:42]} Qd8 {[%emt 0:00:02]} 24. Qb3+ {[%emt 0:03:29]} Kh8 {[%emt 0:00:11]} 25. Qf7 {[%emt 0:00:14]} Ra4 {[%emt 0:04:00]} 26. c6 {[%emt 0:12:39]} bxc6 {[%emt 0:00:46]} 27. Nxc6 {[%emt 0:00:05]} Nbxc6 {[%emt 0:00:26]} 28. bxc6 {[%emt 0:00:37]} Bf5 {[%emt 0:05:04]} 29. Bxe7 {[%emt 0:00:45]} Bxe7 {[%emt 0:00:14]} 30. Rxe7 {[%emt 0:00:15]} Rxe7 {[%emt 0:00:30]} 31. Qxe7 {[%emt 0:00:17]} 1-0

[Event "91st GER-ch 2020"]
[Site "Magdeburg"]
[Date "2020.08.22"]
[Round "9.3"]
[White "Muckle, Julius"]
[Black "Mons, Leon"]
[Result "1/2-1/2"]
[ECO "D37"]
[WhiteElo "2386"]
[BlackElo "2540"]
[Annotator "RC"]
[PlyCount "80"]
[EventDate "2020.08.16"]
[EventType "swiss"]
[EventCountry "GER"]
[SourceTitle "playchess.com"]
[Source "ChessBase"]
[SourceQuality "1"]
[TimeControl "40/5400+30:1800+30"]

1. d4 {[%emt 0:06:57]} Nf6 {[%emt 0:00:00]} 2. c4 {[%emt 0:00:18]} e6 {[%emt 0:00:00]} 3. Nf3 {[%emt 0:00:05]} d5 {[%emt 0:00:00]} 4. Nc3 {[%emt 0:00:04]} dxc4 {[%emt 0:00:00]} 5. e3 {[%emt 0:00:37]} a6 {[%emt 0:00:09]} 6. a4 {[%emt 0:00:57]} c5 {[%emt 0:00:07]} 7. Bxc4 {[%emt 0:00:04]} Nc6 {[%emt 0:00:18]} 8. O-O {[%emt 0:00:12]} Be7 {[%emt 0:00:17]} 9. Qe2 {[%emt 0:02:24]} O-O {[%emt 0:02:57]} 10. Rd1 {[%emt 0:06:10]} Qc7 {[%emt 0:02:33]} 11. d5 {[%emt 0:06:07]} exd5 {[%emt 0:00:28]} 12. Nxd5 {[%emt 0:00:02]} Nxd5 {[%emt 0:00:09]} 13. Bxd5 {[%emt 0:00:12]} Rd8 {[%emt 0:03:21]} 14. e4 {[%emt 0:19:22]} Nb4 {[%emt 0:30:28]} 15. Bd2 {[%emt 0:27:13]} Nxd5 {[%emt 0:05:06]} 16. exd5 {[%emt 0:00:01]} Bg4 {[%emt 0:05:57]} 17. h3 {[%emt 0:04:26]} Bh5 {[%emt 0:01:25]} 18. g4 {[%emt 0:03:03]} Bg6 {[%emt 0:00:25]} 19. Ba5 {[%emt 0:04:30]} b6 {[%emt 0:08:31]} 20. Bxb6 {[%emt 0:01:53]} Qxb6 {[%emt 0:00:03]} 21. Qxe7 {[%emt 0:00:05]} Qxb2 {[%emt 0:00:40]} 22. Qxc5 {[%emt 0:01:09]} Be4 {[%emt 0:02:53]} 23. Qd4 {[%emt 0:07:46]} Qxd4 {[%emt 0:00:39]} 24. Nxd4 {[%emt 0:00:01]} Rxd5 {[%emt 0:00:26]} 25. Nf5 {[%emt 0:01:53]} Ra5 {[%emt 0:07:32]} 26. Nd6 {[%emt 0:01:18]} Bc2 {[%emt 0:05:15]} 27. Rd4 {[%emt 0:01:09]} Rd8 {[%emt 0:02:37]} 28. Nf5 {[%emt 0:00:16]} Rxd4 {[%emt 0:03:21]} 29. Nxd4 {[%emt 0:00:02]} Bg6 {[%emt 0:01:01]} 30. Nc6 {[%emt 0:01:50]} Rc5 {[%emt 0:00:12]} 31. Rd1 {[%emt 0:00:15]} h5 {[%emt 0:03:44]} 32. Ne7+ {[%emt 0:00:09]} Kh7 {[%emt 0:00:07]} 33. Nxg6 {[%emt 0:00:05]} fxg6 {[%emt 0:00:31]} 34. Rd6 {[%emt 0:01:10]} hxg4 {[%emt 0:02:43]} 35. hxg4 {[%emt 0:00:01]} a5 {[%emt 0:00:17]} 36. Rd4 {[%emt 0:00:06]} g5 {[%emt 0:02:49]} 37. Kg2 {[%emt 0:00:09]} Rc3 {[%emt 0:00:57]} 38. f3 {[%emt 0:01:28]} Ra3 {[%emt 0:00:29]} 39. Kg3 {[%emt 0:00:07]} Ra2 {[%emt 0:01:11]} 40. Re4 {[%emt 0:00:08]} Kg6 {[%emt 0:00:39]} 1/2-1/2

[Event "91st GER-ch 2020"]
[Site "Magdeburg"]
[Date "2020.08.22"]
[Round "9.6"]
[White "Dubiel, Jacek"]
[Black "Bindrich, Falko"]
[Result "1/2-1/2"]
[ECO "C49"]
[WhiteElo "2414"]
[BlackElo "2605"]
[Annotator "ChessBase"]
[PlyCount "70"]
[EventDate "2020.08.16"]
[EventType "swiss"]
[EventCountry "GER"]
[SourceTitle "playchess.com"]
[Source "ChessBase"]
[SourceQuality "1"]
[TimeControl "40/5400+30:1800+30"]

1. e4 {[%emt 0:00:00]} e5 {[%emt 0:00:00]} 2. Nf3 {[%emt 0:00:00]} Nc6 {[%emt 0:00:00]} 3. Nc3 {[%emt 0:01:22]} Nf6 {[%emt 0:00:00]} 4. Bb5 {[%emt 0:00:04]} Bb4 {[%emt 0:00:09]} 5. O-O {[%emt 0:00:07]} O-O {[%emt 0:00:14]} 6. Bxc6 {[%emt 0:00:31]} dxc6 {[%emt 0:00:48]} 7. Nxe5 {[%emt 0:00:07]} Re8 {[%emt 0:00:30]} 8. Nd3 {[%emt 0:00:05]} Bxc3 {[%emt 0:04:44]} 9. dxc3 {[%emt 0:00:06]} Nxe4 {[%emt 0:00:03]} 10. Qf3 {[%emt 0:00:08]} Qf6 {[%emt 0:00:59]} 11. Qxf6 {[%emt 0:01:04]} Nxf6 {[%emt 0:00:04]} 12. Bf4 {[%emt 0:00:42]} Nd5 {[%emt 0:04:30]} 13. Rfe1 {[%emt 0:03:04]} Bf5 {[%emt 0:00:55]} 14. Bg3 {[%emt 0:00:56]} b5 {[%emt 0:08:18]} 15. Nb4 {[%emt 0:08:47]} Nxb4 {[%emt 0:01:17]} 16. cxb4 {[%emt 0:00:18]} Bxc2 {[%emt 0:00:09]} 17. Bxc7 {[%emt 0:00:10]} f6 {[%emt 0:00:17]} 18. f3 {[%emt 0:01:54]} Kf7 {[%emt 0:00:48]} 19. Kf2 {[%emt 0:00:56]} Bd3 {[%emt 0:00:32]} 20. Rxe8 {[%emt 0:03:47]} Rxe8 {[%emt 0:00:12]} 21. Re1 {[%emt 0:00:03]} Rxe1 {[%emt 0:00:11]} 22. Kxe1 {[%emt 0:00:05]} Bc4 {[%emt 0:00:04]} 23. a3 {[%emt 0:00:08]} Ke6 {[%emt 0:00:09]} 24. Bb8 {[%emt 0:02:02]} a6 {[%emt 0:00:05]} 25. Kf2 {[%emt 0:00:21]} Kd5 {[%emt 0:00:18]} 26. Ba7 {[%emt 0:01:05]} f5 {[%emt 0:00:55]} 27. Ke3 {[%emt 0:00:47]} Bf1 {[%emt 0:00:09]} 28. g3 {[%emt 0:01:15]} g6 {[%emt 0:00:07]} 29. Bd4 {[%emt 0:00:33]} f4+ {[%emt 0:00:23]} 30. gxf4 {[%emt 0:00:05]} Bh3 {[%emt 0:00:03]} 31. Bf6 {[%emt 0:00:30]} Bf5 {[%emt 0:00:05]} 32. Bc3 {[%emt 0:00:05]} Kc4 {[%emt 0:00:07]} 33. Bf6 {[%emt 0:00:29]} Kd5 {[%emt 0:00:04]} 34. Bc3 {[%emt 0:00:05]} Kc4 {[%emt 0:00:03]} 35. Bf6 {[%emt 0:00:07]} Kd5 {[%emt 0:00:04]} 1/2-1/2

[Event "91st GER-ch 2020"]
[Site "Magdeburg"]
[Date "2020.08.22"]
[Round "9.9"]
[White "Geue, Niklas"]
[Black "Braun, Georg"]
[Result "0-1"]
[ECO "A37"]
[WhiteElo "2050"]
[BlackElo "2360"]
[Annotator "RC"]
[PlyCount "114"]
[EventDate "2020.08.16"]
[EventType "swiss"]
[EventCountry "GER"]
[SourceTitle "playchess.com"]
[Source "ChessBase"]
[SourceQuality "1"]
[TimeControl "40/5400+30:1800+30"]

1. Nf3 {[%emt 0:00:00]} c5 {[%emt 0:00:01]} 2. c4 {[%emt 0:00:10]} Nc6 {[%emt 0:00:13]} 3. g3 {[%emt 0:00:08]} g6 {[%emt 0:00:19]} 4. Bg2 {[%emt 0:01:20]} Bg7 {[%emt 0:00:10]} 5. Nc3 {[%emt 0:00:09]} e5 {[%emt 0:00:33]} 6. d3 {[%emt 0:01:13]} Nge7 {[%emt 0:01:40]} 7. O-O {[%emt 0:01:14]} O-O {[%emt 0:00:26]} 8. Rb1 {[%emt 0:00:29]} d6 {[%emt 0:05:45]} 9. a3 {[%emt 0:03:09]} Bg4 {[%emt 0:01:47]} 10. h3 {[%emt 0:06:23]} Bf5 {[%emt 0:04:22]} 11. b4 {[%emt 0:01:45]} Rb8 {[%emt 0:01:23]} 12. Nd2 {[%emt 0:08:18]} Qd7 {[%emt 0:05:11]} 13. Kh2 {[%emt 0:02:40]} b6 {[%emt 0:01:25]} 14. Nde4 {[%emt 0:02:18]} Kh8 {[%emt 0:01:18]} 15. Bg5 {[%emt 0:01:36]} f6 {[%emt 0:03:49]} 16. Bd2 {[%emt 0:05:23]} Be6 {[%emt 0:01:12]} 17. Qc1 {[%emt 0:02:20]} f5 {[%emt 0:01:32]} 18. Ng5 {[%emt 0:00:38]} Bg8 {[%emt 0:00:09]} 19. e4 {[%emt 0:09:12]} h6 {[%emt 0:06:22]} 20. Nf3 {[%emt 0:01:43]} Kh7 {[%emt 0:01:46]} 21. b5 {[%emt 0:01:28]} Nd4 {[%emt 0:02:44]} 22. Nxd4 {[%emt 0:01:06]} cxd4 {[%emt 0:00:30]} 23. Nd5 {[%emt 0:01:14]} Nxd5 {[%emt 0:08:29]} 24. cxd5 {[%emt 0:01:02]} Rbc8 {[%emt 0:00:50]} 25. Qb2 {[%emt 0:00:24]} h5 {[%emt 0:04:52]} 26. Rbc1 {[%emt 0:04:29]} Rxc1 {[%emt 0:01:13]} 27. Bxc1 {[%emt 0:01:41]} fxe4 {[%emt 0:07:07]} 28. dxe4 {[%emt 0:03:18]} Rc8 {[%emt 0:00:46]} 29. Bd2 {[%emt 0:02:24]} Rc5 {[%emt 0:00:37]} 30. a4 {[%emt 0:03:13]} Qc7 {[%emt 0:01:15]} 31. Rc1 {[%emt 0:00:40]} Bh6 {[%emt 0:01:53]} 32. Rxc5 {[%emt 0:01:58]} bxc5 {[%emt 0:08:53]} 33. Bxh6 {[%emt 0:04:46]} Kxh6 {[%emt 0:00:04]} 34. Bf1 {[%emt 0:00:23]} Kg7 {[%emt 0:03:00]} 35. Qc1 {[%emt 0:03:52]} Qa5 {[%emt 0:05:00]} 36. h4 {[%emt 0:01:42]} Qxa4 {[%emt 0:02:34]} 37. Qg5 {[%emt 0:01:45]} d3 {[%emt 0:05:20]} 38. Bxd3 {[%emt 0:03:14]} Qd4 {[%emt 0:01:20]} 39. Qe7+ {[%emt 0:07:22]} Bf7 {[%emt 0:00:10]} 40. Qxa7 {[%emt 0:00:55]} Qxf2+ {[%emt 0:01:17]} 41. Kh1 {[%emt 0:32:11]} Qf3+ {[%emt 0:35:14]} 42. Kh2 {[%emt 0:02:31]} Qf2+ {[%emt 0:07:47]} 43. Kh1 {[%emt 0:00:08]} Qe1+ {[%emt 0:00:35]} 44. Kg2 {[%emt 0:01:56]} Qd2+ {[%emt 0:00:08]} 45. Kg1 {[%emt 0:04:14]} Qxd3 {[%emt 0:00:00]} 46. b6 {[%emt 0:00:00]} Qe3+ {[%emt 0:00:00]} 47. Kf1 {[%emt 0:00:00]} c4 {[%emt 0:00:00]} 48. Qc7 {[%emt 0:00:00]} Qc1+ {[%emt 0:00:00]} 49. Ke2 {[%emt 0:00:00]} Qb2+ {[%emt 0:00:00]} 50. Kf3 {[%emt 0:00:00]} c3 {[%emt 0:00:00]} 51. b7 {[%emt 0:00:00]} c2 {[%emt 0:00:00]} 52. b8=Q {[%emt 0:00:00]} Qxb8 {[%emt 0:00:00]} 53. Qxb8 {[%emt 0:00:00]} c1=Q {[%emt 0:00:00]} 54. Qxd6 {[%emt 0:00:00]} Qc3+ {[%emt 0:00:00]} 55. Kf2 {[%emt 0:00:00]} Qd4+ {[%emt 0:00:00]} 56. Kf3 {[%emt 0:00:00]} Qd3+ {[%emt 0:00:00]} 57. Kf2 {[%emt 0:00:00]} Qxe4 {[%emt 0:00:00]} 0-1

[Event "91st GER-ch 2020"]
[Site "Magdeburg"]
[Date "2020.08.22"]
[Round "9.15"]
[White "Schulte, Felix"]
[Black "Weber, Max"]
[Result "0-1"]
[ECO "E47"]
[WhiteElo "2174"]
[BlackElo "2243"]
[Annotator "RC"]
[PlyCount "68"]
[EventDate "2020.08.16"]
[EventType "swiss"]
[EventCountry "GER"]
[SourceTitle "playchess.com"]
[Source "ChessBase"]
[SourceQuality "1"]
[TimeControl "40/5400+30:1800+30"]

1. d4 {[%emt 0:00:00]} Nf6 {[%emt 0:00:00]} 2. c4 {[%emt 0:00:00]} e6 {[%emt 0:00:07]} 3. Nc3 {[%emt 0:00:00]} Bb4 {[%emt 0:00:21]} 4. e3 {[%emt 0:01:34]} O-O {[%emt 0:00:41]} 5. Bd3 {[%emt 0:00:26]} c5 {[%emt 0:00:40]} 6. Nge2 {[%emt 0:01:53]} d5 {[%emt 0:00:34]} 7. a3 {[%emt 0:03:26]} cxd4 {[%emt 0:01:38]} 8. exd4 {[%emt 0:01:01]} dxc4 {[%emt 0:01:16]} 9. Bxc4 {[%emt 0:00:24]} Be7 {[%emt 0:01:52]} 10. Nf4 {[%emt 0:07:46]} Nc6 {[%emt 0:03:34]} 11. Be3 {[%emt 0:01:49]} e5 {[%emt 0:06:08]} 12. dxe5 {[%emt 0:03:31]} Nxe5 {[%emt 0:00:23]} 13. Be2 {[%emt 0:04:03]} Neg4 {[%emt 0:04:39]} 14. Qxd8 {[%emt 0:03:24]} Rxd8 {[%emt 0:01:39]} 15. Bc1 {[%emt 0:00:42]} Bf5 {[%emt 0:08:11]} 16. h3 {[%emt 0:06:53]} Ne5 {[%emt 0:01:58]} 17. g4 {[%emt 0:00:45]} Bc2 {[%emt 0:06:21]} 18. O-O {[%emt 0:05:33]} Ne4 {[%emt 0:06:52]} 19. Nxe4 {[%emt 0:06:38]} Bxe4 {[%emt 0:00:30]} 20. f3 {[%emt 0:07:16]} Bc5+ {[%emt 0:03:18]} 21. Kg2 {[%emt 0:02:13]} Bc2 {[%emt 0:04:12]} 22. b4 {[%emt 0:04:16]} Bd4 {[%emt 0:04:07]} 23. Ra2 {[%emt 0:00:18]} Rac8 {[%emt 0:05:03]} 24. Bb2 {[%emt 0:06:20]} Bb3 {[%emt 0:14:54]} 25. Bxd4 {[%emt 0:00:29]} Rxd4 {[%emt 0:00:29]} 26. Rb2 {[%emt 0:00:37]} Ba4 {[%emt 0:04:24]} 27. Nh5 {[%emt 0:04:13]} Nd3 {[%emt 0:01:06]} 28. Bxd3 {[%emt 0:08:15]} Rxd3 {[%emt 0:00:08]} 29. Nf4 {[%emt 0:01:33]} Rxa3 {[%emt 0:01:43]} 30. Nd5 {[%emt 0:01:08]} Kf8 {[%emt 0:03:08]} 31. Kg3 {[%emt 0:03:53]} Rd8 {[%emt 0:02:23]} 32. Rd2 {[%emt 0:01:35]} Bb3 {[%emt 0:00:52]} 33. Rb1 {[%emt 0:01:14]} Bxd5 {[%emt 0:01:21]} 34. Rbd1 {[%emt 0:00:04]} Rxf3+ {[%emt 0:00:09]} 0-1

[Event "91st GER-ch 2020"]
[Site "Magdeburg"]
[Date "2020.08.22"]
[Round "9.17"]
[White "Gustain, Marc"]
[Black "Neurohr, Juergen"]
[Result "1-0"]
[ECO "C56"]
[WhiteElo "2173"]
[BlackElo "2022"]
[Annotator "ChessBase"]
[PlyCount "33"]
[EventDate "2020.08.16"]
[EventType "swiss"]
[EventCountry "GER"]
[SourceTitle "playchess.com"]
[Source "ChessBase"]
[SourceQuality "1"]
[TimeControl "40/5400+30:1800+30"]

1. e4 {[%emt 0:00:00]} e5 {[%emt 0:00:00]} 2. Bc4 {[%emt 0:00:30]} Nf6 {[%emt 0:00:00]} 3. d4 {[%emt 0:00:29]} exd4 {[%emt 0:00:00]} 4. Nf3 {[%emt 0:00:07]} Nc6 {[%emt 0:00:02]} 5. O-O {[%emt 0:00:36]} Nxe4 {[%emt 0:00:13]} 6. Re1 {[%emt 0:00:22]} d5 {[%emt 0:00:13]} 7. Bxd5 {[%emt 0:00:08]} Qxd5 {[%emt 0:00:06]} 8. Nc3 {[%emt 0:00:10]} Qa5 {[%emt 0:00:14]} 9. Nxe4 {[%emt 0:00:09]} Be6 {[%emt 0:00:28]} 10. Neg5 {[%emt 0:00:13]} O-O-O {[%emt 0:03:53]} 11. Nxe6 {[%emt 0:00:15]} fxe6 {[%emt 0:00:19]} 12. Rxe6 {[%emt 0:00:08]} Bd6 {[%emt 0:06:27]} 13. Qe2 {[%emt 0:06:55]} Qh5 {[%emt 0:03:52]} 14. Bd2 {[%emt 0:01:44]} Rde8 {[%emt 0:10:38]} 15. Re1 {[%emt 0:01:50]} Kd7 {[%emt 0:01:13]} 16. Ne5+ {[%emt 0:10:30]} Nxe5 {[%emt 0:06:09]} 17. Rxd6+ {[%emt 0:03:49]} 1-0